bitfinex-derivatives/quotes_SOLF0:USTF0_20250528
["timestamp","ask_amount","ask_price","bid_price","bid_amount"]
[1748408875078,4.28401618,174.5,174.47,5.7285]
[1748408876683,10.01181618,174.5,174.47,5.7285]
[1748408877183,0.04140315,174.5,174.47,5.7285]
[1748408877384,4.28401618,174.5,174.47,5.7285]
[1748408878382,0.04140315,174.5,174.45,4.24261303]
[1748408878976,0.04140315,174.5,174.48,5.7282]
[1748408882589,0.04140315,174.5,174.47,5.7287]
[1748408882781,0.04140315,174.5,174.44,32.48261303]
[1748408883284,5.7286,174.48,174.44,32.48261303]
[1748408883486,4.24261303,174.49,174.44,32.48261303]
[1748408884097,9.97091303,174.49,174.46,5.729]
[1748408884286,4.24261303,174.49,174.44,32.48261303]
[1748408884592,4.24261303,174.49,174.45,5.7292]
[1748408885091,4.24261303,174.49,174.44,32.48261303]
[1748408885689,9.97091303,174.49,174.46,5.7289]
[1748408885889,5.7283,174.49,174.46,5.7289]
[1748408886791,5.7283,174.49,174.45,5.7293]
[1748408887897,5.7285,174.48,174.44,38.21221303]
[1748408888091,0.04140315,174.5,174.44,32.48261303]
[1748408888395,5.7282,174.49,174.45,5.7292]
[1748408890096,5.7282,174.49,174.46,5.7291]
[1748408891397,5.7285,174.48,174.45,5.7294]
[1748408893401,5.7283,174.49,174.45,5.7294]
[1748408893801,5.7283,174.49,174.46,5.729]
[1748408894604,5.7283,174.49,174.45,5.7293]
[1748408894797,5.7285,174.48,174.45,5.7293]
[1748408895100,0.04140315,174.5,174.44,4.24261303]
[1748408895302,0.04140315,174.5,174.46,5.7291]
[1748408895796,0.04140315,174.5,174.44,4.24261303]
[1748408896191,0.04140315,174.5,174.45,5.7292]
[1748408896501,5.7285,174.48,174.45,5.7292]
[1748408899307,5.7283,174.49,174.46,5.7291]
[1748408906902,0.04140315,174.5,174.44,32.48261303]
[1748408907909,0.04140315,174.5,174.48,5.7284]
[1748408910011,0.04140315,174.5,174.49,5.7281]
[1748408911208,0.04140315,174.5,174.48,5.7283]
[1748408920516,5.76920315,174.5,174.47,5.7287]
[1748408921216,0.04140315,174.5,174.47,5.7287]
[1748408922017,0.04140315,174.5,174.48,5.7284]
[1748408929623,5.7263,174.55,174.48,32.46261303]
[1748408929917,4.24261303,174.56,174.48,32.46261303]
[1748408930723,5.76708841,174.54,174.51,5.7273]
[1748408932425,0.04028841,174.54,174.52,5.7271]
[1748408934730,0.04028841,174.54,174.5,0.03853266]
[1748408935034,4.24261303,174.52,174.5,0.03853266]
[1748408935434,5.7275,174.51,174.5,0.03853266]
[1748408949256,9.97011303,174.51,174.5,0.03853266]
[1748408955159,5.7275,174.51,174.5,0.03853266]
[1748408955364,9.97011303,174.51,174.5,0.03853266]
[1748408963067,146.36,174.53,174.5,0.03853266]
[1748408963861,152.0869,174.53,174.5,5.76633266]
[1748408964957,146.36,174.53,174.5,0.03853266]
[1748408965164,4.24261303,174.52,174.5,0.03853266]
[1748408966867,5.7275,174.51,174.5,0.03853266]
[1748408980173,146.36,174.53,174.5,0.03853266]
[1748408980476,4.24261303,174.51,174.5,0.03853266]
[1748408981777,9.97011303,174.51,174.5,0.03853266]
[1748408987783,5.7275,174.51,174.5,0.03853266]
[1748409000297,146.36,174.53,174.5,0.03853266]
[1748409001194,150.60261303,174.53,174.5,0.03853266]
[1748409001494,5.7275,174.51,174.5,0.03853266]
[1748409003186,9.97011303,174.51,174.5,0.03853266]
[1748409006697,5.7288,174.48,174.44,28.2]
[1748409006895,5.7288,174.48,174.45,5.7292]
[1748409007295,5.7288,174.48,174.45,115.7092]
[1748409007694,5.7658081,174.48,174.45,115.7092]
[1748409007895,0.0370081,174.48,174.45,115.7092]
[1748409008801,5.7655081,174.48,174.46,5.7291]
[1748409010900,0.0370081,174.48,174.46,5.7291]
[1748409011207,0.0370081,174.48,174.47,5.7288]
[1748409022205,4.24261303,174.54,174.46,32.44261303]
[1748409023105,0.0413878,174.52,174.51,5.7274]
[1748409033927,4.24261303,174.56,174.54,5.7263]
[1748409034130,4.24261303,174.58,174.54,5.7263]
[1748409034430,5.7258,174.57,174.53,5.7267]
[1748409034730,4.24261303,174.56,174.53,5.7267]
[1748409035027,4.28225634,174.56,174.53,5.77064461]
[1748409035225,5.7263,174.55,174.53,0.04394461]
[1748409036429,10.00825634,174.56,174.53,0.04394461]
[1748409039032,10.00825634,174.56,174.53,5.77074461]
[1748409041441,5.7262,174.55,174.53,0.04394461]
[1748409041938,4.24261303,174.54,174.53,0.04394461]
[1748409042139,9.96911303,174.54,174.53,0.04394461]
[1748409043239,4.24261303,174.54,174.49,5.7278]
[1748409043439,4.24261303,174.52,174.49,5.7278]
[1748409044240,4.28297214,174.52,174.49,5.76510774]
[1748409045046,5.7275,174.51,174.49,5.76510774]
[1748409045542,0.04035911,174.52,174.49,0.03730774]
[1748409046141,0.04035911,174.52,174.5,5.7278]
[1748409046440,0.04035911,174.52,174.49,0.03730774]
[1748409047138,0.04035911,174.52,174.5,5.7276]
[1748409049246,0.04035911,174.52,174.51,5.7275]
[1748409049441,0.04035911,174.52,174.51,33.9075]
[1748409053237,4.24261303,174.56,174.54,5.7263]
[1748409054047,4.24261303,174.58,174.54,5.7263]
[1748409054349,4.28146891,174.58,174.54,5.76405905]
[1748409055043,5.7256,174.57,174.54,5.76405905]
[1748409057553,0.03885588,174.58,174.55,5.7261]
[1748409058148,5.76405588,174.58,174.55,5.7261]
[1748409059542,0.03885588,174.58,174.55,5.7261]
[1748409060153,5.76405588,174.58,174.55,5.7261]
[1748409063050,0.03885588,174.58,174.55,5.7261]
[1748409064547,5.76405588,174.58,174.55,5.7261]
[1748409066056,5.7255,174.57,174.54,5.76405905]
[1748409066458,0.03885588,174.58,174.54,0.03775905]
[1748409066958,5.7256,174.57,174.54,5.76415905]
[1748409067261,0.03885588,174.58,174.54,0.03775905]
[1748409067461,5.7256,174.57,174.54,5.76405905]
[1748409068361,5.7256,174.57,174.55,5.7261]
[1748409069958,0.03885588,174.58,174.54,0.03775905]
[1748409070561,5.7258,174.57,174.54,5.76425905]
[1748409070857,0.03885588,174.58,174.54,0.03775905]
[1748409071063,5.7256,174.57,174.54,5.76425905]
[1748409072062,5.726,174.56,174.54,5.76425905]
[1748409072557,9.96821303,174.57,174.55,5.7261]
[1748409072963,9.96821303,174.57,174.54,0.03775905]
[1748409073164,9.96821303,174.57,174.54,5.76415905]
[1748409074162,10.00676891,174.58,174.55,5.7259]
[1748409074465,0.03885588,174.58,174.54,0.03775905]
[1748409074857,5.7257,174.57,174.54,5.76405905]
[1748409076670,4.24261303,174.57,174.54,0.03775905]
[1748409078270,5.7258,174.56,174.54,5.76425905]
[1748409078473,4.28146891,174.58,174.54,0.03775905]
[1748409078766,10.00686891,174.58,174.54,0.03775905]
[1748409079070,10.00686891,174.58,174.55,5.726]
[1748409079271,4.28146891,174.58,174.55,5.726]
[1748409079872,10.00676891,174.58,174.55,5.726]
[1748409080273,0.03885588,174.58,174.56,5.7257]
[1748409080468,5.76405588,174.58,174.54,28.19775905]
[1748409081172,5.76405588,174.58,174.55,5.726]
[1748409083973,5.7255,174.57,174.55,5.726]
[1748409086578,5.7255,174.57,174.54,33.92415905]
[1748409087982,5.7255,174.57,174.55,5.7262]
[1748409088186,5.76415588,174.58,174.54,28.19775905]
[1748409089184,5.76415588,174.58,174.55,5.726]
[1748409092689,5.7256,174.57,174.54,28.19775905]
[1748409094891,5.7256,174.57,174.54,33.92425905]
[1748409096089,5.7259,174.56,174.54,28.19775905]
[1748409096989,5.7256,174.57,174.54,33.92415905]
[1748409098093,5.7259,174.56,174.54,33.92415905]
[1748409099290,5.7259,174.56,174.54,5.76415905]
[1748409101385,5.7259,174.56,174.54,0.03775905]
[1748409103291,5.7259,174.56,174.54,5.76425905]
[1748409104095,5.7259,174.56,174.54,0.03775905]
[1748409106501,5.7259,174.56,174.54,5.76425905]
[1748409108703,5.7259,174.56,174.54,0.03775905]
[1748409108907,5.7262,174.55,174.54,0.03775905]
[1748409111206,9.96881303,174.55,174.54,0.03775905]
[1748409116109,5.7262,174.55,174.54,0.03775905]
[1748409116311,9.96881303,174.55,174.54,0.03775905]
[1748409121613,5.7262,174.55,174.54,0.03775905]
[1748409121911,9.96881303,174.55,174.54,0.03775905]
[1748409125213,5.7262,174.55,174.54,0.03775905]
[1748409125912,5.726,174.56,174.54,0.03775905]
[1748409126109,4.24261303,174.57,174.54,0.03775905]
[1748409126310,0.03885588,174.58,174.54,28.17775905]
[1748409126513,0.03885588,174.58,174.54,32.42037208]
[1748409127415,0.03885588,174.58,174.55,5.7261]
[1748409128911,0.03885588,174.58,174.56,5.7258]
[1748409130717,0.03885588,174.58,174.57,5.7255]
[1748409136320,0.03885588,174.58,174.57,115.6055]
[1748409136719,4.24261303,174.63,174.6,5.7244]
[1748409137821,4.28472434,174.63,174.6,5.76225796]
[1748409138121,10.00832434,174.63,174.6,5.76225796]
[1748409141218,4.28472434,174.63,174.6,5.76225796]
[1748409141824,10.00832434,174.63,174.6,5.76225796]
[1748409142624,0.04211131,174.63,174.6,5.76225796]
[1748409143726,0.04211131,174.63,174.6,0.03785796]
[1748409144328,0.04211131,174.63,174.61,5.7242]
[1748409152846,0.04211131,174.63,174.6,0.03785796]
[1748409153342,0.04211131,174.63,174.61,5.7242]
[1748409153947,0.04211131,174.63,174.62,5.7239]
[1748409155544,4.24261303,174.68,174.62,28.12]
[1748409156345,0.04196592,174.67,174.63,0.03988183]
[1748409156751,0.04196592,174.67,174.65,5.7228]
[1748409162251,0.04196592,174.67,174.66,5.7226]
[1748409163253,0.04196592,174.67,174.65,5.7228]
[1748409165257,0.04196592,174.67,174.66,5.7226]
[1748409166459,0.04196592,174.67,174.65,5.7228]
[1748409166652,4.28457895,174.67,174.63,0.03988183]
[1748409166854,5.7229,174.65,174.63,0.03988183]
[1748409173264,5.7232,174.64,174.63,0.03988183]
[1748409177866,4.28457895,174.67,174.63,0.03988183]
[1748409177867,0.04196592,174.67,174.63,5.76328183]
[1748409178062,0.04196592,174.67,174.63,0.03988183]
[1748409178566,5.723,174.65,174.63,0.03988183]
[1748409179859,5.723,174.65,174.63,5.76338183]
[1748409180465,5.7227,174.66,174.63,5.76338183]
[1748409180663,5.7227,174.66,174.64,5.7232]
[1748409180864,5.7227,174.66,174.63,0.03988183]
[1748409181371,5.7227,174.66,174.63,5.76328183]
[1748409189071,5.76436592,174.67,174.64,5.7232]
[1748409189272,0.04196592,174.67,174.63,0.03988183]
[1748409189876,5.7227,174.66,174.63,5.76308183]
[1748409191874,5.7229,174.65,174.63,0.03988183]
[1748409192177,4.24261303,174.66,174.63,0.03988183]
[1748409192875,5.7232,174.65,174.63,0.03988183]
[1748409193776,5.7232,174.65,174.63,5.76338183]
[1748409196084,5.7232,174.65,174.63,0.03988183]
[1748409197377,9.96531303,174.66,174.63,5.76328183]
[1748409198082,5.7229,174.65,174.63,5.76328183]
[1748409199686,5.7229,174.65,174.63,0.03988183]
[1748409203392,5.7227,174.66,174.63,5.76338183]
[1748409204189,5.7227,174.66,174.64,5.7232]
[1748409206986,5.76426592,174.67,174.64,5.7232]
[1748409208092,0.04196592,174.67,174.63,0.03988183]
[1748409208890,5.7228,174.66,174.63,5.76338183]
[1748409210291,5.7228,174.66,174.64,5.7232]
[1748409211395,5.76436592,174.67,174.63,5.76338183]
[1748409215502,5.7226,174.66,174.64,5.7232]
[1748409216404,5.7226,174.66,174.63,5.76338183]
[1748409221907,5.7229,174.65,174.63,5.76338183]
[1748409223911,5.7227,174.66,174.63,5.76338183]
[1748409224410,0.04196592,174.67,174.65,5.7229]
[1748409225012,5.76426592,174.67,174.65,5.7229]
[1748409225609,5.7226,174.66,174.64,5.7232]
[1748409225813,5.7226,174.66,174.63,0.03988183]
[1748409225814,0.04196592,174.67,174.63,0.03988183]
[1748409226311,5.76446592,174.67,174.64,5.723]
[1748409228917,5.7226,174.66,174.64,5.723]
[1748409231321,5.7229,174.65,174.63,0.03988183]
[1748409232012,5.7229,174.65,174.63,5.76338183]
[1748409232409,5.7232,174.64,174.63,0.03988183]
[1748409233326,5.7242,174.61,174.59,28.08]
[1748409233823,4.24261303,174.63,174.59,28.08]
[1748409234023,5.7242,174.61,174.59,28.08]
[1748409235014,5.7242,174.61,174.59,33.8048]
[1748409235826,5.76134482,174.62,174.59,33.8048]
[1748409242925,0.03734482,174.62,174.59,28.08]
[1748409243321,0.03734482,174.62,174.6,4.24261303]
[1748409244541,0.03734482,174.62,174.61,5.7242]
[1748409247926,0.03734482,174.62,174.6,5.7244]
[1748409248130,0.03734482,174.62,174.6,115.5044]
[1748409248331,0.03734482,174.62,174.61,5.7242]
[1748409250929,0.03734482,174.62,174.6,115.5044]
[1748409251637,0.03734482,174.62,174.61,5.7242]
[1748409258336,0.03734482,174.62,174.61,33.8042]
[1748409260535,5.7224,174.67,174.64,5.723]
[1748409261432,0.04216501,174.67,174.64,0.03882485]
[1748409261634,0.04216501,174.67,174.64,4.28143788]
[1748409261833,0.04216501,174.67,174.66,5.7224]
[1748409266543,2.0192,174.73,174.7,5.7212]
[1748409267042,146.36,174.75,174.7,5.7212]
[1748409267238,150.60261303,174.75,174.7,5.7212]
[1748409267643,0.03986731,174.74,174.71,0.03878282]
[1748409267844,5.7205,174.73,174.71,0.03878282]
[1748409283863,5.75996731,174.74,174.71,5.75968282]
[1748409284258,0.03986731,174.74,174.71,0.03878282]
[1748409285452,0.03986731,174.74,174.72,5.7206]
[1748409285652,0.03986731,174.74,174.71,0.03878282]
[1748409286253,0.03986731,174.74,174.73,5.7203]
[1748409287963,0.03986731,174.74,174.73,33.8003]
[1748409288167,5.719,174.77,174.74,5.7199]
[1748409289172,5.7571251,174.77,174.74,5.7199]
[1748409290366,0.0381251,174.77,174.74,5.7199]
[1748409290566,0.0381251,174.77,174.73,32.32261303]
[1748409290767,0.0381251,174.77,174.73,28.08]
[1748409290970,4.24261303,174.76,174.73,28.08]
[1748409291167,5.7199,174.74,174.73,28.08]
[1748409291471,5.7199,174.74,174.71,0.03878282]
[1748409292471,5.7199,174.74,174.71,33.83948282]
[1748409293168,4.016,174.76,174.72,5.7206]
[1748409293169,5.7197,174.75,174.72,5.7206]
[1748409293473,2.0366,174.76,174.71,32.36139585]
[1748409293670,0.0381251,174.77,174.71,32.36139585]
[1748409293875,4.28073813,174.77,174.71,28.11878282]
[1748409294068,4.24261303,174.75,174.71,28.11878282]
[1748409294374,5.72,174.74,174.71,0.03878282]
[1748409295774,5.7205,174.73,174.71,0.03878282]
[1748409296674,5.7206,174.72,174.71,0.03878282]
[1748409301675,5.7222,174.67,174.66,522.28]
[1748409301876,4.24261303,174.69,174.62,4.24261303]
[1748409302076,4.24261303,174.69,174.63,33.7834]
[1748409302276,5.7231,174.65,174.63,137.76]
[1748409302478,4.24261303,174.67,174.63,137.76]
[1748409302674,4.28064382,174.67,174.63,28.09885551]
[1748409303482,5.7228,174.66,174.63,33.82225551]
[1748409304278,5.7229,174.65,174.63,143.52225551]
[1748409304982,4.28064382,174.67,174.63,137.79885551]
[1748409305482,5.7232,174.64,174.63,137.79885551]
[1748409305682,5.7232,174.64,174.63,28.09885551]
[1748409307282,5.7229,174.66,174.63,28.09885551]
[1748409308972,10.00304382,174.67,174.63,33.82215551]
[1748409311477,5.7226,174.66,174.63,33.82215551]
[1748409311872,5.7226,174.66,174.63,28.09885551]
[1748409313382,4.28064382,174.67,174.63,28.09885551]
[1748409314584,5.7232,174.65,174.63,28.09885551]
[1748409315385,5.7232,174.65,174.63,0.03885551]
[1748409316386,5.7227,174.66,174.63,5.76235551]
[1748409316585,4.28064382,174.67,174.63,0.03885551]
[1748409317686,5.7232,174.64,174.63,0.03885551]
[1748409324285,152.0832,174.64,174.63,0.03885551]
[1748409325486,154.1126,174.64,174.63,0.03885551]
[1748409340401,5.7249,174.59,174.58,137.84]
[1748409340794,5.7249,174.59,174.58,28.08]
[1748409341599,5.76209047,174.6,174.58,28.08]
[1748409341900,5.76209047,174.6,174.58,33.8052]
[1748409342298,5.76209047,174.6,174.58,28.08]
[1748409343197,5.7248,174.59,174.57,5.76250063]
[1748409345708,10.0047035,174.6,174.58,5.7252]
[1748409346005,5.76209047,174.6,174.58,5.7252]
[1748409346599,5.76209047,174.6,174.57,5.76250063]
[1748409346999,5.725,174.59,174.57,5.76250063]
[1748409349507,5.76209047,174.6,174.57,5.76250063]
[1748409350306,5.7249,174.59,174.57,5.76250063]
[1748409356014,5.76189047,174.6,174.57,0.03710063]
[1748409356315,0.03739047,174.6,174.57,0.03710063]
[1748409356517,0.03739047,174.6,174.57,5.76240063]
[1748409356906,5.76209047,174.6,174.57,5.76240063]
[1748409358311,0.03739047,174.6,174.59,5.7249]
[1748409363013,0.03739047,174.6,174.59,33.8049]
[1748409365123,146.36,174.64,174.61,5.7239]
[1748409365321,4.24261303,174.67,174.6,4.24261303]
[1748409365517,4.24261303,174.65,174.59,28.08]
[1748409365716,4.24261303,174.65,174.59,33.8046]
[1748409366117,0.04331831,174.64,174.6,0.03941009]
[1748409366313,5.7238,174.63,174.6,0.03941009]
[1748409366518,0.04331831,174.64,174.6,0.03941009]
[1748409367025,5.7236,174.63,174.6,0.03941009]
[1748409368721,5.7236,174.63,174.6,5.76391009]
[1748409369325,0.04331831,174.64,174.6,5.76391009]
[1748409369326,5.7239,174.62,174.6,5.76391009]
[1748409370228,5.7237,174.63,174.6,5.76391009]
[1748409371325,0.04331831,174.64,174.6,5.76391009]
[1748409371326,5.7239,174.62,174.6,5.76391009]
[1748409374520,5.7237,174.63,174.6,5.76391009]
[1748409378129,5.7237,174.63,174.61,5.7242]
[1748409381920,5.76661831,174.64,174.61,5.7242]
[1748409382122,0.04331831,174.64,174.63,5.7235]
[1748409382334,0.04331831,174.64,174.6,4.28202312]
[1748409382831,0.04331831,174.64,174.62,5.7236]
[1748409385032,5.76661831,174.64,174.62,5.7236]
[1748409390534,0.04331831,174.64,174.63,5.7235]
[1748409391939,0.04331831,174.64,174.62,9.96641303]
[1748409392837,5.76651831,174.64,174.62,9.96641303]
[1748409393440,5.76651831,174.64,174.62,5.7238]
[1748409395241,0.04331831,174.64,174.62,5.7238]
[1748409395444,0.04331831,174.64,174.63,5.7235]
[1748409395844,0.04331831,174.64,174.63,33.7835]
[1748409396747,0.04331831,174.64,174.63,38.02611303]
[1748409409458,28.06,174.77,174.7,5.7213]
[1748409409659,32.30261303,174.77,174.7,5.7213]
[1748409410364,5.7203,174.73,174.7,5.7213]
[1748409410568,5.7203,174.73,174.7,5.76080202]
[1748409412664,5.7206,174.72,174.7,0.03950202]
[1748409417969,5.7206,174.72,174.7,5.76070202]
[1748409418165,5.7204,174.73,174.7,5.76070202]
[1748409420867,0.03914622,174.74,174.7,0.03950202]
[1748409421170,0.03914622,174.74,174.72,4.24261303]
[1748409421371,146.36,174.8,174.76,5.719]
[1748409421567,4.24261303,174.81,174.74,4.24261303]
[1748409422068,4.24261303,174.79,174.71,28.06]
[1748409422274,0.04194657,174.77,174.73,0.03849049]
[1748409422769,5.7199,174.75,174.73,0.03849049]
[1748409423970,5.7199,174.74,174.73,0.03849049]
[1748409424171,0.04194657,174.77,174.73,0.03849049]
[1748409425471,4.2845596,174.77,174.73,0.03849049]
[1748409425671,4.24261303,174.75,174.73,0.03849049]
[1748409425870,5.7199,174.74,174.73,0.03849049]
[1748409430776,5.7198,174.75,174.73,0.03849049]
[1748409430975,146.36,174.76,174.73,0.03849049]
[1748409431369,5.7199,174.74,174.73,0.03849049]
[1748409433180,5.7198,174.75,174.73,0.03849049]
[1748409434183,5.7199,174.74,174.73,0.03849049]
[1748409439784,5.7197,174.75,174.73,0.03849049]
[1748409441378,146.36,174.76,174.73,0.03849049]
[1748409441578,5.7199,174.74,174.73,0.03849049]
[1748409447484,5.7198,174.75,174.73,0.03849049]
[1748409449095,0.04194657,174.77,174.73,4.27931123]
[1748409449297,0.04194657,174.77,174.75,4.24082074]
[1748409450892,0.04194657,174.77,174.76,5.7193]
[1748409454699,0.04194657,174.77,174.74,137.7]
[1748409455494,0.04194657,174.77,174.74,28.04]
[1748409456996,0.04194657,174.77,174.75,5.7196]
[1748409457992,0.04194657,174.77,174.76,5.7193]
[1748409471608,5.7168,174.84,174.8,5.7177]
[1748409471809,174.4,174.88,174.8,28.04]
[1748409472010,7.59,174.87,174.8,28.04]
[1748409472211,7.59,174.87,174.83,5.7169]
[1748409472717,7.62744577,174.87,174.83,5.75651284]
[1748409472914,5.7161,174.86,174.83,5.75651284]
[1748409475112,5.75324577,174.87,174.84,5.7166]
[1748409475317,0.03744577,174.87,174.83,0.03961284]
[1748409475817,0.03744577,174.87,174.85,5.7161]
[1748409477410,0.03744577,174.87,174.86,5.716]
[1748409480015,0.03744577,174.87,174.85,5.7163]
[1748409481721,0.03744577,174.87,174.86,5.716]
[1748409495928,0.03744577,174.87,174.86,9.95049806]
[1748409496326,0.03744577,174.87,174.86,5.716]
[1748409496527,0.03744577,174.87,174.86,9.95049806]
[1748409500929,0.03744577,174.87,174.86,4.23449806]
[1748409502035,0.03744577,174.87,174.86,9.95049806]
[1748409509142,0.03744577,174.87,174.84,28.04]
[1748409509346,4.27194383,174.87,174.83,0.03961284]
[1748409509545,5.7167,174.84,174.83,0.03961284]
[1748409509841,4.23449806,174.85,174.81,28.02]
[1748409510053,5.7182,174.8,174.78,28.02]
[1748409510240,4.23449806,174.83,174.78,28.02]
[1748409510747,0.04149921,174.82,174.79,0.03884735]
[1748409511345,5.718,174.8,174.79,0.03884735]
[1748409520756,0.04149921,174.82,174.79,0.03884735]
[1748409521051,0.04149921,174.82,174.79,5.75714735]
[1748409521247,5.7178,174.81,174.79,0.03884735]
[1748409522148,0.04149921,174.82,174.8,28.02]
[1748409522753,0.04149921,174.82,174.81,5.7177]
[1748409525657,0.04149921,174.82,174.8,33.7379]
[1748409525961,0.04149921,174.82,174.8,28.02]
[1748409526163,5.75899921,174.82,174.8,28.02]
[1748409526760,0.04149921,174.82,174.8,33.7379]
[1748409526960,0.04149921,174.82,174.8,28.02]
[1748409528452,0.04149921,174.82,174.81,5.7177]
[1748409529659,146.36,174.89,174.8,28.02]
[1748409529959,152.0752,174.89,174.8,34.63718022]
[1748409530262,146.36,174.89,174.86,5.7157]
[1748409530662,146.4009141,174.89,174.86,5.75918662]
[1748409530864,152.1161141,174.89,174.86,0.04348662]
[1748409531564,152.1161141,174.89,174.86,5.75948662]
[1748409532565,152.1161141,174.89,174.86,0.04348662]
[1748409532566,146.4009141,174.89,174.86,0.04348662]
[1748409533167,146.4009141,174.89,174.87,5.7155]
[1748409533859,146.4009141,174.89,174.88,5.7154]
[1748409536367,146.4009141,174.89,174.86,5.75918662]
[1748409536666,146.4009141,174.89,174.86,0.04348662]
[1748409536865,0.0409141,174.89,174.86,0.04348662]
[1748409537065,5.7561141,174.89,174.86,5.75938662]
[1748409537959,0.0409141,174.89,174.86,0.04348662]
[1748409538366,5.7157,174.87,174.86,0.04348662]
[1748409541067,5.7155,174.88,174.86,0.04348662]
[1748409542171,5.7155,174.88,174.86,5.75948662]
[1748409544468,5.7561141,174.89,174.86,5.75948662]
[1748409544970,5.7154,174.88,174.86,5.75948662]
[1748409545778,5.7154,174.88,174.86,0.04348662]
[1748409546972,5.7154,174.88,174.86,5.75938662]
[1748409547273,5.7154,174.88,174.86,0.04348662]
[1748409547971,5.7154,174.88,174.86,5.75938662]
[1748409552675,5.7154,174.88,174.86,0.04348662]
[1748409554369,5.7154,174.88,174.86,5.75948662]
[1748409555681,5.7157,174.87,174.86,0.04348662]
[1748409556681,5.7155,174.88,174.86,0.04348662]
[1748409557775,5.7157,174.87,174.86,0.04348662]
[1748409559475,5.7155,174.88,174.86,5.75948662]
[1748409562384,5.7155,174.88,174.86,0.04348662]
[1748409563180,5.7155,174.88,174.86,5.75948662]
[1748409566589,5.7155,174.88,174.86,0.04348662]
[1748409567599,5.7157,174.87,174.86,0.04348662]
[1748409567994,6.61759663,174.88,174.81,28.18]
[1748409568198,1.9771,174.86,174.79,28.18]
[1748409568795,5.7179,174.81,174.79,28.18]
[1748409568998,5.7179,174.81,174.78,5.75634703]
[1748409573401,5.7179,174.81,174.79,5.7183]
[1748409578609,5.75895018,174.82,174.79,5.7183]
[1748409581312,5.75895018,174.82,174.64,73.4465]
[1748409581313,6.65904681,174.82,174.64,73.4465]
[1748409581616,6.61759663,174.78,174.65,143.7914]
[1748409581913,5.7202,174.74,174.69,5.7213]
[1748409582114,5.7202,174.74,174.7,28.1]
[1748409582314,0.04339787,174.74,174.7,28.13628451]
[1748409583214,5.7206,174.73,174.7,28.13628451]
[1748409583415,0.04339787,174.74,174.7,28.13628451]
[1748409584016,5.7208,174.72,174.7,28.13628451]
[1748409586416,5.7209,174.71,174.7,28.13628451]
[1748409588617,5.7207,174.72,174.7,28.13628451]
[1748409588917,0.04339787,174.74,174.7,28.13628451]
[1748409589313,5.7203,174.73,174.7,33.85748451]
[1748409592927,5.7209,174.71,174.7,28.13628451]
[1748409593222,0.04339787,174.74,174.7,28.13628451]
[1748409593619,5.7203,174.73,174.7,28.13628451]
[1748409594318,5.7203,174.73,174.7,33.85728451]
[1748409595613,0.04339787,174.74,174.7,28.13628451]
[1748409596017,5.76359787,174.74,174.71,5.7209]
[1748409596216,0.04339787,174.74,174.71,5.7209]
[1748409597021,5.7203,174.73,174.71,5.7209]
[1748409599129,5.76349787,174.74,174.71,5.7209]
[1748409599328,0.04339787,174.74,174.71,5.7209]
[1748409600430,5.7204,174.73,174.7,33.85738451]
[1748409600929,5.76349787,174.74,174.71,5.7209]
[1748409601328,0.04339787,174.74,174.7,28.13628451]
[1748409601530,0.04339787,174.74,174.73,5.7203]
[1748409605126,0.04339787,174.74,174.72,5.7205]
[1748409605327,0.04339787,174.74,174.7,28.13628451]
[1748409605724,5.76349787,174.74,174.7,28.13628451]
[1748409606131,0.04339787,174.74,174.7,28.13628451]
[1748409606333,0.04339787,174.74,174.72,5.7206]
[1748409607434,5.76339787,174.74,174.72,5.7206]
[1748409607636,0.04339787,174.74,174.72,5.7206]
[1748409609234,0.04339787,174.74,174.7,28.13628451]
[1748409610936,5.76339787,174.74,174.7,28.13628451]
[1748409611538,5.76339787,174.74,174.71,5.7209]
[1748409612334,5.76339787,174.74,174.72,5.7206]
[1748409612728,0.04339787,174.74,174.7,28.13628451]
[1748409613339,0.04339787,174.74,174.73,5.7203]
[1748409613935,0.04339787,174.74,174.72,5.7204]
[1748409614527,5.76339787,174.74,174.72,5.7204]
[1748409615342,5.76339787,174.74,174.71,5.7208]
[1748409617034,5.7203,174.73,174.72,28.34]
[1748409617236,0.04339787,174.74,174.7,0.03628451]
[1748409617434,0.04339787,174.74,174.71,28.34]
[1748409618139,5.7206,174.73,174.71,28.34]
[1748409618539,0.04339787,174.74,174.71,28.34]
[1748409619240,0.04339787,174.74,174.73,5.7203]